[Event "*** Titled Tuesday Blitz"]
[Site "Chess.com"]
[Date "2021.04.27"]
[Round "5"]
[White "ChampStan"]
[Black "dosto07"]
[Result "1-0"]
[WhiteElo "2114"]
[BlackElo "2296"]
[TimeControl "180+1"]
[EndTime "10:57:01 PDT"]
[Termination "ChampStan won on time"]

1. e4 {[%clk 0:03:00.9]} 1... e5 {[%clk 0:02:59.3]} 2. Nf3 {[%clk 0:02:58.2]}
2... Nc6 {[%clk 0:02:59.2]} 3. Bb5 {[%clk 0:02:51.4]} 3... a6 {[%clk 0:02:58.9]}
4. Ba4 {[%clk 0:02:46.2]} 4... Nf6 {[%clk 0:02:58.1]} 5. O-O {[%clk 0:02:46.1]}
5... Be7 {[%clk 0:02:58]} 6. Re1 {[%clk 0:02:44.3]} 6... b5 {[%clk 0:02:58.4]}
7. Bb3 {[%clk 0:02:43.8]} 7... O-O {[%clk 0:02:58.9]} 8. c3 {[%clk 0:02:42.6]}
8... d6 {[%clk 0:02:59.2]} 9. h3 {[%clk 0:02:42.2]} 9... Na5 {[%clk 0:02:59.2]}
10. Bc2 {[%clk 0:02:41]} 10... c5 {[%clk 0:02:59.5]} 11. d3 {[%clk 0:02:36.6]}
11... Re8 {[%clk 0:02:55.7]} 12. Nbd2 {[%clk 0:02:37.5]} 12... Bf8 {[%clk
0:02:54.6]} 13. Nf1 {[%clk 0:02:37.9]} 13... h6 {[%clk 0:02:53.1]} 14. Ng3
{[%clk 0:02:38.4]} 14... g6 {[%clk 0:02:45]} 15. Be3 {[%clk 0:02:25.1]} 15...
Bg7 {[%clk 0:02:41.8]} 16. a4 {[%clk 0:02:15.5]} 16... Bb7 {[%clk 0:02:30.9]}
17. Qd2 {[%clk 0:01:55.9]} 17... Kh7 {[%clk 0:02:29.9]} 18. Rad1 {[%clk
0:01:56.4]} 18... Qc7 {[%clk 0:02:24.8]} 19. Qc1 {[%clk 0:01:35.8]} 19... d5
{[%clk 0:02:17.5]} 20. exd5 {[%clk 0:01:26.7]} 20... Bxd5 {[%clk 0:02:13.6]} 21.
Nh4 {[%clk 0:01:25.1]} 21... Nb3 {[%clk 0:02:00.4]} 22. Qb1 {[%clk 0:01:21.1]}
22... bxa4 {[%clk 0:01:58.1]} 23. d4 {[%clk 0:01:18]} 23... cxd4 {[%clk
0:01:43.8]} 24. Bxg6+ {[%clk 0:01:12.5]} 24... fxg6 {[%clk 0:01:37.6]} 25. Qxg6+
{[%clk 0:01:13.4]} 25... Kh8 {[%clk 0:01:35.5]} 26. Bxh6 {[%clk 0:01:14]} 26...
Qf7 {[%clk 0:01:19.8]} 27. Ngf5 {[%clk 0:00:41.6]} 27... Qxg6 {[%clk 0:01:08.1]}
28. Nxg6+ {[%clk 0:00:37.3]} 28... Kh7 {[%clk 0:01:08.1]} 29. Nxg7 {[%clk
0:00:33]} 29... Kxg6 {[%clk 0:00:59.3]} 30. Nxe8 {[%clk 0:00:33]} 30... Rxe8
{[%clk 0:00:56.8]} 31. cxd4 {[%clk 0:00:32.8]} 31... Nxd4 {[%clk 0:00:38.9]} 32.
Be3 {[%clk 0:00:31.6]} 32... Nc2 {[%clk 0:00:19.7]} 33. Re2 {[%clk 0:00:28.9]}
33... Nxe3 {[%clk 0:00:19.1]} 34. Rxe3 {[%clk 0:00:29.8]} 34... Kf7 {[%clk
0:00:16.2]} 35. Rc1 {[%clk 0:00:19.5]} 35... Rg8 {[%clk 0:00:12.6]} 36. g4
{[%clk 0:00:17.9]} 36... e4 {[%clk 0:00:10.2]} 37. Rc7+ {[%clk 0:00:16.4]} 37...
Ke6 {[%clk 0:00:08.3]} 38. Kh2 {[%clk 0:00:16.6]} 38... Rb8 {[%clk 0:00:07.4]}
39. Rc2 {[%clk 0:00:13.2]} 39... Rb3 {[%clk 0:00:06.8]} 40. Rce2 {[%clk
0:00:10.4]} 40... Rxe3 {[%clk 0:00:05.9]} 41. Rxe3 {[%clk 0:00:10.4]} 41... Ke5
{[%clk 0:00:06.2]} 42. Kg3 {[%clk 0:00:10.7]} 42... Nd7 {[%clk 0:00:05.6]} 43.
Rc3 {[%clk 0:00:10.7]} 43... Nb6 {[%clk 0:00:04.9]} 44. h4 {[%clk 0:00:08.9]}
44... Nc4 {[%clk 0:00:04]} 45. Rc2 {[%clk 0:00:07.9]} 45... Nd6 {[%clk
0:00:02.7]} 46. h5 {[%clk 0:00:07.7]} 46... e3 {[%clk 0:00:02.3]} 47. fxe3
{[%clk 0:00:07]} 47... Ne4+ {[%clk 0:00:02.6]} 48. Kh4 {[%clk 0:00:07.3]} 48...
Nd6 {[%clk 0:00:01.3]} 49. Rc5 {[%clk 0:00:05.7]} 1-0

[Event "*** Titled Tuesday Blitz"]
[Site "Chess.com"]
[Date "2021.04.27"]
[Round "5"]
[White "MatyChess1"]
[Black "m_ezat"]
[Result "1-0"]
[WhiteElo "2682"]
[BlackElo "2499"]
[TimeControl "180+1"]
[EndTime "10:57:02 PDT"]
[Termination "MatyChess1 won by checkmate"]

1. e4 {[%clk 0:03:00.9]} 1... c6 {[%clk 0:02:57.7]} 2. Nf3 {[%clk 0:03:01.2]}
2... d5 {[%clk 0:02:58.1]} 3. Nc3 {[%clk 0:03:02.1]} 3... Bg4 {[%clk 0:02:57.1]}
4. h3 {[%clk 0:03:01.8]} 4... Bh5 {[%clk 0:02:56.1]} 5. d4 {[%clk 0:03:01.4]}
5... e6 {[%clk 0:02:55.3]} 6. g4 {[%clk 0:02:58.7]} 6... Bg6 {[%clk 0:02:54.5]}
7. exd5 {[%clk 0:02:59.6]} 7... cxd5 {[%clk 0:02:52]} 8. h4 {[%clk 0:02:56]}
8... Bb4 {[%clk 0:02:40]} 9. Ne5 {[%clk 0:02:50.9]} 9... f6 {[%clk 0:02:39.8]}
10. Bb5+ {[%clk 0:02:36.9]} 10... Kf8 {[%clk 0:02:39.6]} 11. Nxg6+ {[%clk
0:02:34.4]} 11... hxg6 {[%clk 0:02:39.5]} 12. Qd3 {[%clk 0:02:33.8]} 12... Kf7
{[%clk 0:02:38.8]} 13. a3 {[%clk 0:02:29.3]} 13... Ba5 {[%clk 0:02:31.3]} 14. b4
{[%clk 0:02:28.6]} 14... Bb6 {[%clk 0:02:31.1]} 15. Ne2 {[%clk 0:02:27.2]} 15...
a5 {[%clk 0:02:26.5]} 16. Rb1 {[%clk 0:01:51.3]} 16... axb4 {[%clk 0:02:25]} 17.
axb4 {[%clk 0:01:51.7]} 17... Ne7 {[%clk 0:02:24.9]} 18. c3 {[%clk 0:01:48.7]}
18... Ra2 {[%clk 0:02:22]} 19. c4 {[%clk 0:01:31.3]} 19... dxc4 {[%clk
0:02:12.8]} 20. Bxc4 {[%clk 0:01:31.1]} 20... Ra8 {[%clk 0:02:11.7]} 21. Nf4
{[%clk 0:01:27.9]} 21... Qxd4 {[%clk 0:02:06.8]} 22. Qxd4 {[%clk 0:01:27.4]}
22... Bxd4 {[%clk 0:02:06]} 23. Rh3 {[%clk 0:01:19.2]} 23... Ra6 {[%clk
0:01:53.7]} 24. b5 {[%clk 0:01:14.1]} 24... Rd6 {[%clk 0:01:52.9]} 25. Ba3
{[%clk 0:01:14.3]} 25... Rd5 {[%clk 0:01:20.6]} 26. Bxd5 {[%clk 0:00:48.7]}
26... Nxd5 {[%clk 0:01:19.4]} 27. Nxd5 {[%clk 0:00:47.5]} 27... exd5 {[%clk
0:01:19.9]} 28. Rd1 {[%clk 0:00:48.3]} 28... Be5 {[%clk 0:01:13.2]} 29. Rxd5
{[%clk 0:00:46.1]} 29... Ke6 {[%clk 0:01:13.7]} 30. Rd1 {[%clk 0:00:32.3]} 30...
Nd7 {[%clk 0:01:13.4]} 31. Re3 {[%clk 0:00:25.7]} 31... Nb6 {[%clk 0:01:02.5]}
32. Rd6+ {[%clk 0:00:24.6]} 32... Kf7 {[%clk 0:00:57.5]} 33. Rxb6 {[%clk
0:00:25.5]} 33... Rxh4 {[%clk 0:00:57.5]} 34. Rxb7+ {[%clk 0:00:25.2]} 34... Kg8
{[%clk 0:00:58.1]} 35. Rxe5 {[%clk 0:00:20.3]} 35... fxe5 {[%clk 0:00:57.2]} 36.
f3 {[%clk 0:00:20.9]} 36... Rh3 {[%clk 0:00:56.3]} 37. Bb2 {[%clk 0:00:19.2]}
37... Rxf3 {[%clk 0:00:54.7]} 38. b6 {[%clk 0:00:18.2]} 38... Rb3 {[%clk
0:00:53]} 39. Bc1 {[%clk 0:00:16]} 39... Rb4 {[%clk 0:00:51.6]} 40. g5 {[%clk
0:00:15.3]} 40... Rc4 {[%clk 0:00:47.7]} 41. Be3 {[%clk 0:00:15.4]} 41... Rc3
{[%clk 0:00:47.1]} 42. Ke2 {[%clk 0:00:15.9]} 42... Rb3 {[%clk 0:00:48]} 43. Re7
{[%clk 0:00:14.5]} 43... Kh7 {[%clk 0:00:46.6]} 44. Rxe5 {[%clk 0:00:14.7]}
44... Rb2+ {[%clk 0:00:44.8]} 45. Kf3 {[%clk 0:00:14.5]} 45... Rb3 {[%clk
0:00:44.7]} 46. Re7 {[%clk 0:00:15]} 46... Kg8 {[%clk 0:00:43.2]} 47. b7 {[%clk
0:00:14.2]} 47... Kh7 {[%clk 0:00:43.9]} 48. Rc7 {[%clk 0:00:13.5]} 48... Kg8
{[%clk 0:00:37.5]} 49. Ke4 {[%clk 0:00:13.4]} 49... Kh7 {[%clk 0:00:36.5]} 50.
Bd4 {[%clk 0:00:13]} 50... Rb4 {[%clk 0:00:31]} 51. Rxg7+ {[%clk 0:00:12]} 51...
Kh8 {[%clk 0:00:31.6]} 52. Rxg6+ {[%clk 0:00:09]} 52... Kh7 {[%clk 0:00:31.4]}
53. Rh6+ {[%clk 0:00:09]} 53... Kg8 {[%clk 0:00:31.9]} 54. b8=Q+ {[%clk
0:00:07.2]} 54... Rxb8 {[%clk 0:00:30.4]} 55. Rh8+ {[%clk 0:00:07.7]} 55... Kf7
{[%clk 0:00:31.3]} 56. Rxb8 {[%clk 0:00:08.4]} 56... Kg6 {[%clk 0:00:31.9]} 57.
Rb6+ {[%clk 0:00:09]} 57... Kh5 {[%clk 0:00:32.8]} 58. Be5 {[%clk 0:00:09.2]}
58... Kxg5 {[%clk 0:00:32.5]} 59. Rb1 {[%clk 0:00:08.9]} 59... Kh5 {[%clk
0:00:33.1]} 60. Rg1 {[%clk 0:00:09.2]} 60... Kh4 {[%clk 0:00:33.8]} 61. Kf5
{[%clk 0:00:09.2]} 61... Kh3 {[%clk 0:00:33.5]} 62. Bf4 {[%clk 0:00:09.4]} 62...
Kh4 {[%clk 0:00:33.3]} 63. Rh1# {[%clk 0:00:09.9]} 1-0

[Event "*** Titled Tuesday Blitz"]
[Site "Chess.com"]
[Date "2021.04.27"]
[Round "5"]
[White "ErikRonka"]
[Black "LenkaPtacnikova"]
[Result "0-1"]
[WhiteElo "2464"]
[BlackElo "2202"]
[TimeControl "180+1"]
[EndTime "10:57:04 PDT"]
[Termination "LenkaPtacnikova won by resignation"]

1. d4 {[%clk 0:03:00.9]} 1... Nf6 {[%clk 0:02:59.1]} 2. c4 {[%clk 0:03:00.4]}
2... e6 {[%clk 0:02:58.9]} 3. Nc3 {[%clk 0:03:00.7]} 3... Bb4 {[%clk 0:02:59.1]}
4. a3 {[%clk 0:03:01.2]} 4... Bxc3+ {[%clk 0:02:58.9]} 5. bxc3 {[%clk
0:03:02.1]} 5... c5 {[%clk 0:02:44.6]} 6. e3 {[%clk 0:03:01.9]} 6... O-O {[%clk
0:02:43.6]} 7. Bd3 {[%clk 0:02:52.2]} 7... d6 {[%clk 0:02:38.5]} 8. e4 {[%clk
0:02:51.7]} 8... e5 {[%clk 0:02:37.4]} 9. Ne2 {[%clk 0:02:46.3]} 9... Re8 {[%clk
0:02:34]} 10. f3 {[%clk 0:02:45.7]} 10... Qa5 {[%clk 0:02:27.8]} 11. O-O {[%clk
0:02:35.7]} 11... Qc7 {[%clk 0:02:17.6]} 12. Bg5 {[%clk 0:02:32.5]} 12... Nfd7
{[%clk 0:02:14.8]} 13. Ra2 {[%clk 0:02:24.9]} 13... Nc6 {[%clk 0:02:13.2]} 14.
d5 {[%clk 0:02:18.5]} 14... Na5 {[%clk 0:02:12.8]} 15. g4 {[%clk 0:02:15.9]}
15... b6 {[%clk 0:02:06.7]} 16. Ng3 {[%clk 0:02:14.8]} 16... Ba6 {[%clk
0:02:02.4]} 17. Qe2 {[%clk 0:02:06.6]} 17... Nf8 {[%clk 0:01:56.9]} 18. Nf5
{[%clk 0:01:48.1]} 18... Ng6 {[%clk 0:01:54.7]} 19. h4 {[%clk 0:01:43.3]} 19...
f6 {[%clk 0:01:53.2]} 20. Be3 {[%clk 0:01:29.2]} 20... Nf4 {[%clk 0:01:53]} 21.
Bxf4 {[%clk 0:01:29.1]} 21... exf4 {[%clk 0:01:53.1]} 22. Qh2 {[%clk 0:01:16.1]}
22... Bxc4 {[%clk 0:01:01.9]} 23. Bxc4 {[%clk 0:01:13.8]} 23... Nxc4 {[%clk
0:01:02.4]} 24. Qxf4 {[%clk 0:01:11.2]} 24... Ne5 {[%clk 0:00:59.7]} 25. Rg2
{[%clk 0:01:03.3]} 25... g6 {[%clk 0:00:52.7]} 26. Nh6+ {[%clk 0:00:45.2]} 26...
Kg7 {[%clk 0:00:52.4]} 27. g5 {[%clk 0:00:42.2]} 27... fxg5 {[%clk 0:00:52.4]}
28. Qxg5 {[%clk 0:00:36.7]} 28... Qd8 {[%clk 0:00:29.9]} 29. Nf5+ {[%clk
0:00:20.7]} 29... Kh8 {[%clk 0:00:29.6]} 30. Qg3 {[%clk 0:00:20.9]} 30... Qf6
{[%clk 0:00:20.3]} 31. Nh6 {[%clk 0:00:19.3]} 31... Rf8 {[%clk 0:00:19.1]} 32.
f4 {[%clk 0:00:18.8]} 32... Nc4 {[%clk 0:00:18.9]} 33. Ng4 {[%clk 0:00:18.6]}
33... Qe7 {[%clk 0:00:18.1]} 34. e5 {[%clk 0:00:15.7]} 34... dxe5 {[%clk
0:00:16.6]} 35. fxe5 {[%clk 0:00:16.6]} 35... Rxf1+ {[%clk 0:00:15.3]} 36. Kxf1
{[%clk 0:00:17.5]} 36... Rf8+ {[%clk 0:00:14.2]} 37. Rf2 {[%clk 0:00:15.4]}
37... Rxf2+ {[%clk 0:00:12.1]} 38. Kxf2 {[%clk 0:00:16.3]} 38... Qf7+ {[%clk
0:00:11.7]} 39. Kg2 {[%clk 0:00:15.1]} 39... Qxd5+ {[%clk 0:00:11.7]} 40. Kh3
{[%clk 0:00:14.4]} 40... Qe6 {[%clk 0:00:11.6]} 41. Kh2 {[%clk 0:00:13.5]} 41...
Kg7 {[%clk 0:00:10.7]} 42. Qf4 {[%clk 0:00:13.7]} 42... Qf5 {[%clk 0:00:10.3]}
43. Qh6+ {[%clk 0:00:13.4]} 43... Kg8 {[%clk 0:00:08.6]} 44. Nf6+ {[%clk
0:00:13.2]} 44... Kf7 {[%clk 0:00:08.9]} 45. Qxh7+ {[%clk 0:00:13.5]} 45... Ke6
{[%clk 0:00:09.1]} 46. Qd7+ {[%clk 0:00:05.7]} 46... Kxe5 {[%clk 0:00:09.1]} 47.
Ng4+ {[%clk 0:00:06]} 47... Kf4 {[%clk 0:00:09.2]} 48. Qc7+ {[%clk 0:00:03.9]}
48... Kxg4 {[%clk 0:00:08.6]} 49. Qg3+ {[%clk 0:00:01.4]} 49... Kh5 {[%clk
0:00:09.1]} 50. Qg2 {[%clk 0:00:01.6]} 50... Qf4+ {[%clk 0:00:08.9]} 51. Kh1
{[%clk 0:00:01.4]} 51... Qxh4+ {[%clk 0:00:09]} 52. Kg1 {[%clk 0:00:01.4]} 52...
Qg4 {[%clk 0:00:09.4]} 53. Kf1 {[%clk 0:00:01.4]} 0-1

[Event "*** Titled Tuesday Blitz"]
[Site "Chess.com"]
[Date "2021.04.27"]
[Round "5"]
[White "Susal_De_Silva"]
[Black "Andreikka"]
[Result "0-1"]
[WhiteElo "2629"]
[BlackElo "2883"]
[TimeControl "180+1"]
[EndTime "10:57:05 PDT"]
[Termination "Andreikka won by resignation"]

1. e4 {[%clk 0:03:00.9]} 1... e5 {[%clk 0:02:55.5]} 2. Nf3 {[%clk 0:03:01]} 2...
Nc6 {[%clk 0:02:55.1]} 3. Bc4 {[%clk 0:03:01.5]} 3... Bc5 {[%clk 0:02:54.2]} 4.
O-O {[%clk 0:03:01]} 4... Nf6 {[%clk 0:02:53.5]} 5. d3 {[%clk 0:03:01.7]} 5...
O-O {[%clk 0:02:53.3]} 6. c3 {[%clk 0:03:01.7]} 6... d6 {[%clk 0:02:52.2]} 7. h3
{[%clk 0:03:00.4]} 7... h6 {[%clk 0:02:50.3]} 8. Re1 {[%clk 0:02:59.4]} 8... a5
{[%clk 0:02:49.7]} 9. Bb3 {[%clk 0:02:59.4]} 9... Be6 {[%clk 0:02:47.9]} 10.
Nbd2 {[%clk 0:02:59.2]} 10... Re8 {[%clk 0:02:46.3]} 11. Bc2 {[%clk 0:02:58.4]}
11... d5 {[%clk 0:02:45.9]} 12. Nf1 {[%clk 0:02:56.9]} 12... Qd7 {[%clk
0:02:44.6]} 13. Be3 {[%clk 0:02:54.7]} 13... Bf8 {[%clk 0:02:44]} 14. Ng3 {[%clk
0:02:46.9]} 14... dxe4 {[%clk 0:02:40.7]} 15. dxe4 {[%clk 0:02:47.8]} 15... Qxd1
{[%clk 0:02:41.1]} 16. Rexd1 {[%clk 0:02:45.4]} 16... a4 {[%clk 0:02:42]} 17. a3
{[%clk 0:02:37.2]} 17... g6 {[%clk 0:02:31.1]} 18. Ne1 {[%clk 0:02:27.3]} 18...
Nd7 {[%clk 0:02:16.9]} 19. Nd3 {[%clk 0:02:23]} 19... b5 {[%clk 0:02:09.6]} 20.
Nb4 {[%clk 0:02:08.6]} 20... Na5 {[%clk 0:02:08.3]} 21. Nd5 {[%clk 0:02:03.5]}
21... Rec8 {[%clk 0:02:06.1]} 22. Nf1 {[%clk 0:01:27.9]} 22... c6 {[%clk
0:01:53.4]} 23. Nb4 {[%clk 0:01:26.2]} 23... Nc4 {[%clk 0:01:40.5]} 24. Bc1
{[%clk 0:01:24.1]} 24... h5 {[%clk 0:01:41.1]} 25. Ne3 {[%clk 0:01:23.4]} 25...
Na5 {[%clk 0:01:41.8]} 26. f3 {[%clk 0:01:16.8]} 26... Nc5 {[%clk 0:01:40.1]}
27. Nf1 {[%clk 0:01:13]} 27... Be7 {[%clk 0:01:36.7]} 28. Be3 {[%clk 0:01:12.1]}
28... Nc4 {[%clk 0:01:32]} 29. Rab1 {[%clk 0:01:08.6]} 29... Nb3 {[%clk
0:01:23.6]} 30. Bxb3 {[%clk 0:01:07.3]} 30... axb3 {[%clk 0:01:22.5]} 31. Bf2
{[%clk 0:01:04.1]} 31... Bg5 {[%clk 0:01:20.8]} 32. h4 {[%clk 0:00:58]} 32...
Bh6 {[%clk 0:01:19.2]} 33. Nd3 {[%clk 0:00:53]} 33... Na5 {[%clk 0:01:08.4]} 34.
Nc5 {[%clk 0:00:50.2]} 34... Bc4 {[%clk 0:01:07.7]} 35. Ne3 {[%clk 0:00:46.4]}
35... Rd8 {[%clk 0:00:54.3]} 36. Nd7 {[%clk 0:00:34.1]} 36... Bg7 {[%clk
0:00:51.8]} 37. Nf1 {[%clk 0:00:26.1]} 37... Be2 {[%clk 0:00:40.3]} 38. Rd2
{[%clk 0:00:26.2]} 38... Bxf1 {[%clk 0:00:36.7]} 39. Kxf1 {[%clk 0:00:22.5]}
39... Nc4 {[%clk 0:00:36.9]} 40. Rdd1 {[%clk 0:00:22.3]} 40... Bh6 {[%clk
0:00:36.4]} 41. Ke2 {[%clk 0:00:20.2]} 41... Nd2 {[%clk 0:00:29.7]} 42. Nxe5
{[%clk 0:00:16]} 42... Nxb1 {[%clk 0:00:28.8]} 43. Rxb1 {[%clk 0:00:15.6]} 43...
Rd2+ {[%clk 0:00:28.9]} 44. Kf1 {[%clk 0:00:16.4]} 44... Rad8 {[%clk 0:00:27.7]}
45. Nxc6 {[%clk 0:00:16.7]} 45... Rd1+ {[%clk 0:00:27.6]} 46. Rxd1 {[%clk
0:00:16.7]} 46... Rxd1+ {[%clk 0:00:28.5]} 47. Ke2 {[%clk 0:00:17.6]} 47... Rd2+
{[%clk 0:00:29.4]} 48. Ke1 {[%clk 0:00:18.5]} 48... Rxb2 {[%clk 0:00:26.9]} 49.
Bd4 {[%clk 0:00:15]} 49... Re2+ {[%clk 0:00:22.3]} 50. Kxe2 {[%clk 0:00:14.2]}
50... b2 {[%clk 0:00:23.2]} 51. Ne7+ {[%clk 0:00:12.1]} 51... Kh7 {[%clk
0:00:17]} 52. Nd5 {[%clk 0:00:06]} 52... b1=Q {[%clk 0:00:17.3]} 53. Nf6+ {[%clk
0:00:06.4]} 53... Kh8 {[%clk 0:00:17.9]} 54. Ng4+ {[%clk 0:00:03.9]} 54... Bg7
{[%clk 0:00:17.7]} 0-1

[Event "*** Titled Tuesday Blitz"]
[Site "Chess.com"]
[Date "2021.04.27"]
[Round "5"]
[White "Vanina1989"]
[Black "Anton_Demchenko"]
[Result "0-1"]
[WhiteElo "2805"]
[BlackElo "2932"]
[TimeControl "180+1"]
[EndTime "10:57:07 PDT"]
[Termination "Anton_Demchenko won on time"]

1. d4 {[%clk 0:03:00.9]} 1... Nf6 {[%clk 0:02:57.6]} 2. c4 {[%clk 0:03:01]} 2...
g6 {[%clk 0:02:57.5]} 3. Nc3 {[%clk 0:03:00.7]} 3... Bg7 {[%clk 0:02:58.1]} 4.
e4 {[%clk 0:03:00.9]} 4... d6 {[%clk 0:02:57.8]} 5. Nf3 {[%clk 0:03:01]} 5...
O-O {[%clk 0:02:57.4]} 6. Be2 {[%clk 0:03:01.4]} 6... Nbd7 {[%clk 0:02:57.6]} 7.
O-O {[%clk 0:03:01.3]} 7... e5 {[%clk 0:02:57.6]} 8. Be3 {[%clk 0:02:59.3]} 8...
c6 {[%clk 0:02:57.7]} 9. Qc2 {[%clk 0:02:57.5]} 9... Ng4 {[%clk 0:02:54.1]} 10.
Bg5 {[%clk 0:02:57.2]} 10... f6 {[%clk 0:02:54.5]} 11. Bd2 {[%clk 0:02:57.1]}
11... f5 {[%clk 0:02:46]} 12. exf5 {[%clk 0:02:55.4]} 12... exd4 {[%clk
0:02:46.2]} 13. Ne4 {[%clk 0:02:52]} 13... Nc5 {[%clk 0:02:32.4]} 14. Nxc5
{[%clk 0:02:47.6]} 14... dxc5 {[%clk 0:02:32.9]} 15. fxg6 {[%clk 0:02:47.9]}
15... Qd6 {[%clk 0:02:32.6]} 16. gxh7+ {[%clk 0:02:42.5]} 16... Kh8 {[%clk
0:02:32.8]} 17. h3 {[%clk 0:02:13.1]} 17... Rxf3 {[%clk 0:02:09]} 18. hxg4
{[%clk 0:02:12.1]} 18... d3 {[%clk 0:02:09.2]} 19. Qb3 {[%clk 0:01:27]} 19...
dxe2 {[%clk 0:02:01.7]} 20. Qxf3 {[%clk 0:01:26.9]} 20... exf1=Q+ {[%clk
0:02:02.1]} 21. Rxf1 {[%clk 0:01:27.1]} 21... Qxd2 {[%clk 0:01:23.5]} 22. Rd1
{[%clk 0:01:26.5]} 22... Bxg4 {[%clk 0:01:22.9]} 23. Qxg4 {[%clk 0:01:26.8]}
23... Qxb2 {[%clk 0:01:22.8]} 24. Rd7 {[%clk 0:01:03.6]} 24... Rf8 {[%clk
0:01:20.3]} 25. f3 {[%clk 0:00:54]} 25... Qb1+ {[%clk 0:00:53.6]} 26. Kf2 {[%clk
0:00:40.4]} 26... Bd4+ {[%clk 0:00:46.7]} 27. Kg3 {[%clk 0:00:31.6]} 27... Qe1+
{[%clk 0:00:44.5]} 28. Kh2 {[%clk 0:00:20.6]} 28... Be5+ {[%clk 0:00:43.3]} 29.
g3 {[%clk 0:00:19.6]} 29... Qe2+ {[%clk 0:00:28.3]} 30. Kh3 {[%clk 0:00:19.7]}
30... Qxf3 {[%clk 0:00:24]} 31. Qxf3 {[%clk 0:00:15.1]} 31... Rxf3 {[%clk
0:00:24.9]} 32. Rxb7 {[%clk 0:00:14.6]} 32... Rxg3+ {[%clk 0:00:25]} 33. Kh4
{[%clk 0:00:15.1]} 33... Rg7 {[%clk 0:00:20]} 34. Rb3 {[%clk 0:00:11.3]} 34...
Kxh7 {[%clk 0:00:19.9]} 35. Kh5 {[%clk 0:00:11.4]} 35... Bd4 {[%clk 0:00:19.6]}
36. Ra3 {[%clk 0:00:11.2]} 36... Re7 {[%clk 0:00:18]} 37. Ra6 {[%clk 0:00:11.3]}
37... Rc7 {[%clk 0:00:17.7]} 38. Kg5 {[%clk 0:00:11.2]} 38... Kg7 {[%clk
0:00:18.3]} 39. Kf5 {[%clk 0:00:11.7]} 39... Kf7 {[%clk 0:00:18.9]} 40. Ra3
{[%clk 0:00:12]} 40... Re7 {[%clk 0:00:16.5]} 41. Ra6 {[%clk 0:00:11.7]} 41...
Rc7 {[%clk 0:00:15.1]} 42. Ra3 {[%clk 0:00:11.6]} 42... Ke7 {[%clk 0:00:15.5]}
43. Rh3 {[%clk 0:00:11.5]} 43... Kd7 {[%clk 0:00:14.1]} 44. Rh7+ {[%clk
0:00:10.9]} 44... Kc8 {[%clk 0:00:14.2]} 45. Rh3 {[%clk 0:00:11]} 45... Kb7
{[%clk 0:00:14.6]} 46. Rb3+ {[%clk 0:00:10.5]} 46... Ka8 {[%clk 0:00:14.7]} 47.
Ke6 {[%clk 0:00:10.7]} 47... Rb7 {[%clk 0:00:14.3]} 48. Ra3 {[%clk 0:00:09.9]}
48... Rb4 {[%clk 0:00:14.5]} 49. Kd6 {[%clk 0:00:09.4]} 49... Kb7 {[%clk
0:00:14.7]} 50. Rh3 {[%clk 0:00:07.6]} 50... Rxc4 {[%clk 0:00:14.8]} 51. Rh7+
{[%clk 0:00:04.6]} 51... Kb6 {[%clk 0:00:15.3]} 52. Rh3 {[%clk 0:00:04.4]} 52...
Rc3 {[%clk 0:00:14.6]} 53. Rh1 {[%clk 0:00:03.7]} 53... Rd3 {[%clk 0:00:14.3]}
54. Rb1+ {[%clk 0:00:03.4]} 54... Ka6 {[%clk 0:00:12.1]} 55. Kxc6 {[%clk
0:00:03.5]} 55... Ra3 {[%clk 0:00:12.2]} 0-1